fUST/lending_fUST_20250901
["ID","MTS","AMOUNT","RATE_DAILY","PERIOD"]
[382640465,1756691446027,-1194.5,0.00016319,2]
[382640467,1756691446037,-480.0,0.00016319,2]
[382640469,1756691446046,-481.63209188,0.00016319,2]
[382640470,1756691446056,-480.0,0.00016319,2]
[382640473,1756691446066,-1306.4,0.00016319,2]
[382640474,1756691446077,-480.0,0.00016319,2]
[382640477,1756691446087,-480.0,0.00016319,2]
[382640478,1756691446098,-1221.33,0.00016319,2]
[382640480,1756691446107,-480.0,0.00016319,2]
[382640482,1756691446117,-480.0,0.00016319,2]
[382640484,1756691446126,-480.0,0.00016319,2]
[382640486,1756691446136,-480.0,0.00016319,2]
[382640488,1756691446145,-482.79217295,0.00016319,2]
[382640490,1756691446156,-810.55,0.00016319,2]
[382640492,1756691446165,-480.0,0.00016319,2]
[382640494,1756691446174,-527.52009378,0.00016319,2]
[382640496,1756691446183,-480.0,0.00016319,2]
[382640498,1756691446195,-487.40208907,0.00016319,2]
[382640500,1756691446206,-480.0,0.00016319,2]
[382640502,1756691446216,-480.0,0.00016319,2]
[382640504,1756691446225,-840.82,0.00016319,2]
[382640506,1756691446235,-580.75,0.00016319,2]
[382640507,1756691446246,-480.0,0.00016319,2]
[382640508,1756691446255,-480.0,0.00016319,2]
[382640509,1756691446264,-544.35,0.00016319,2]
[382640510,1756691446273,-1161.44,0.00016319,2]
[382640511,1756691446283,-480.0,0.00016319,2]
[382640512,1756691446292,-551.29,0.00016319,2]
[382640513,1756691446301,-480.0,0.00016319,2]
[382640514,1756691446310,-1018.65,0.00016319,2]
[382640515,1756691446319,-1026.82,0.00016319,2]
[382640516,1756691446328,-480.0,0.00016319,2]
[382640517,1756691446337,-1129.34,0.00016319,2]
[382640518,1756691446346,-480.0,0.00016319,2]
[382640519,1756691446357,-480.0,0.00016319,2]
[382640522,1756691446367,-1064.29,0.00016319,2]
[382640523,1756691446376,-480.0,0.00016319,2]
[382640525,1756691446388,-480.0,0.00016319,2]
[382640527,1756691446398,-480.0,0.00016319,2]
[382640529,1756691446407,-480.0,0.00016319,2]
[382640531,1756691446417,-1019.67,0.00016319,2]
[382640533,1756691446426,-480.0,0.00016319,2]
[382640535,1756691446435,-480.0,0.00016319,2]
[382640537,1756691446444,-480.0,0.00016319,2]
[382640539,1756691446453,-1291.87,0.00016319,2]
[382640541,1756691446464,-480.0,0.00016319,2]
[382640543,1756691446473,-480.0,0.00016319,2]
[382640545,1756691446483,-980.1,0.00016319,2]
[382640547,1756691446492,-482.51098347,0.00016319,2]
[382640549,1756691446501,-480.0,0.00016319,2]
[382640551,1756691446510,-1317.34,0.00016319,2]
[382640553,1756691446519,-480.0,0.00016319,2]
[382640555,1756691446529,-480.0,0.00016319,2]
[382640557,1756691446538,-480.0,0.00016319,2]
[382640559,1756691446548,-480.0,0.00016319,2]
[382640561,1756691446557,-480.0,0.00016319,2]
[382640563,1756691446566,-480.0,0.00016319,2]
[382640565,1756691446576,-480.0,0.00016319,2]
[382640567,1756691446586,-696.2,0.00016319,2]
[382640569,1756691446597,-480.0,0.00016319,2]
[382640571,1756691446606,-548.46,0.00016319,2]
[382640573,1756691446616,-480.0,0.00016319,2]
[382640575,1756691446625,-998.38,0.00016319,2]
[382640577,1756691446634,-1109.69,0.00016319,2]
[382640579,1756691446643,-480.0,0.00016319,2]
[382640581,1756691446653,-555.96,0.00016319,2]
[382640583,1756691446662,-631.79,0.00016319,2]
[382640585,1756691446671,-1253.62,0.00016319,2]
[382640587,1756691446681,-682.23,0.00016319,2]
[382640589,1756691446690,-1137.96,0.00016319,2]
[382640591,1756691446700,-480.0,0.00016319,2]
[382640593,1756691446709,-480.0,0.00016319,2]
[382640595,1756691446719,-511.58,0.00016319,2]
[382640598,1756691446728,-480.0,0.00016319,2]
[382640600,1756691446738,-480.0,0.00016319,2]
[382640602,1756691446748,-480.0,0.00016319,2]
[382640604,1756691446757,-480.0,0.00016319,2]
[382640606,1756691446766,-513.77,0.00016319,2]
[382640608,1756691446776,-481.69695637,0.00016319,2]
[382640610,1756691446786,-480.0,0.00016319,2]
[382640612,1756691446794,-482.36520786,0.00016319,2]
[382640614,1756691446804,-657.55,0.00016319,2]
[382640616,1756691446813,-480.0,0.00016319,2]
[382640618,1756691446822,-578.36,0.00016319,2]
[382640619,1756691446832,-151.0,0.00016319,2]
[382640621,1756691446841,-480.0,0.00016319,2]
[382640623,1756691446851,-482.42503549,0.00016321,2]
[382640625,1756691446860,-252.0223145,0.00016321,2]
[382640628,1756691446870,-490.23,0.00016321,2]
[382640630,1756691446880,-480.0,0.00016321,2]
[382640632,1756691446890,-804.91,0.00016321,2]
[382640634,1756691446899,-1141.89,0.00016321,2]
[382640636,1756691446908,-1175.75,0.00016321,2]
[382640638,1756691446917,-547.24,0.00016321,2]
[382640640,1756691446928,-480.0,0.00016321,2]
[382640642,1756691446937,-732.58,0.00016321,2]
[382640644,1756691446946,-480.0,0.00016321,2]
[382640646,1756691446957,-582.26,0.00016321,2]
[382640647,1756691446967,-480.0,0.00016321,2]
[382640649,1756691446976,-480.0,0.00016321,2]
[382640651,1756691446986,-480.0,0.00016321,2]
[382640653,1756691446996,-899.04,0.00016321,2]
[382640655,1756691447006,-480.0,0.00016321,2]
[382640657,1756691447016,-606.34,0.00016321,2]
[382640659,1756691447025,-480.0,0.00016321,2]
[382640661,1756691447035,-480.0,0.00016321,2]
[382640663,1756691447044,-870.95,0.00016321,2]
[382640666,1756691447055,-932.94,0.00016321,2]
[382640668,1756691447067,-1551.59,0.00016321,2]
[382640670,1756691447077,-480.0,0.00016321,2]
[382640672,1756691447087,-480.0,0.00016321,2]
[382640674,1756691447096,-466.03785895,0.00016321,2]
[382640676,1756691447105,-480.0,0.00016321,2]
[382640678,1756691447116,-641.12,0.00016321,2]
[382640680,1756691447125,-482.33626038,0.00016321,2]
[382640682,1756691447134,-480.0,0.00016321,2]
[382640684,1756691447144,-480.0,0.00016321,2]
[382640685,1756691447154,-480.0,0.00016321,2]
[382640688,1756691447164,-480.0,0.00016321,2]
[382640690,1756691447173,-480.0,0.00016321,2]
[382640692,1756691447183,-561.0,0.00016321,2]
[382640693,1756691447192,-480.0,0.00016321,2]
[382640695,1756691447201,-480.0,0.00016323,2]
[382640697,1756691447210,-480.0,0.00016323,2]
[382640699,1756691447219,-480.0,0.00016323,2]
[382640701,1756691447228,-480.0,0.00016323,2]
[382640703,1756691447238,-480.0,0.00016323,2]
[382640705,1756691447247,-480.0,0.00016323,2]
[382640707,1756691447256,-480.0,0.00016323,2]
[382640709,1756691447265,-1089.6,0.00016323,2]
[382640711,1756691447278,-480.0,0.00016323,2]
[382640713,1756691447287,-480.0,0.00016323,2]
[382640715,1756691447297,-658.6,0.00016323,2]
[382640717,1756691447306,-480.0,0.00016323,2]
[382640720,1756691447317,-480.0,0.00016323,2]
[382640722,1756691447326,-1126.05,0.00016323,2]
[382640724,1756691447335,-480.0,0.00016323,2]
[382640726,1756691447344,-480.0,0.00016323,2]
[382640728,1756691447353,-480.0,0.00016323,2]
[382640730,1756691447364,-480.0,0.00016323,2]
[382640732,1756691447374,-588.64,0.00016323,2]
[382640734,1756691447385,-480.0,0.00016323,2]
[382640735,1756691447396,-480.0,0.00016323,2]
[382640738,1756691447406,-480.0,0.00016323,2]
[382640740,1756691447416,-480.0,0.00016323,2]
[382640742,1756691447425,-480.0,0.00016323,2]
[382640744,1756691447434,-580.91,0.00016323,2]
[382640745,1756691447443,-480.0,0.00016323,2]
[382640747,1756691447452,-480.0,0.00016323,2]
[382640749,1756691447462,-568.8,0.00016323,2]
[382640752,1756691447472,-480.0,0.00016323,2]
[382640754,1756691447481,-480.0,0.00016323,2]
[382640756,1756691447491,-481.77888078,0.00016323,2]
[382640758,1756691447500,-480.0,0.00016323,2]
[382640760,1756691447509,-480.0,0.00016323,2]
[382640762,1756691447521,-481.97117126,0.00016323,2]
[382640764,1756691447530,-480.0,0.00016323,2]
[382640766,1756691447540,-480.0,0.00016323,2]
[382640768,1756691447549,-500.86,0.00016323,2]
[382640770,1756691447558,-482.22867996,0.00016323,2]
[382640772,1756691447568,-482.36166513,0.00016323,2]
[382640774,1756691447577,-657.57,0.00016323,2]
[382640776,1756691447586,-492.4909545,0.00016323,2]
[382640778,1756691447595,-480.0,0.00016323,2]
[382640780,1756691447604,-481.76696717,0.00016323,2]
[382640782,1756691447614,-803.6,0.00016323,2]
[382640783,1756691447623,-151.0,0.00016323,2]
[382640786,1756691447633,-480.0,0.00016323,2]
[382640788,1756691447642,-151.0,0.00016323,2]
[382640789,1756691447651,-480.0,0.00016323,2]
[382640791,1756691447660,-805.71,0.00016323,2]
[382640793,1756691447669,-480.0,0.00016323,2]
[382640796,1756691447679,-769.19,0.00016323,2]
[382640797,1756691447689,-480.0,0.00016323,2]
[382640800,1756691447700,-480.0,0.00016323,2]
[382640802,1756691447710,-480.0,0.00016323,2]
[382640804,1756691447720,-518.41,0.00016323,2]
[382640806,1756691447730,-480.0,0.00016323,2]
[382640808,1756691447740,-151.0,0.00016323,2]
[382640810,1756691447750,-480.0,0.00016323,2]
[382640812,1756691447759,-480.0,0.00016323,2]
[382640814,1756691447769,-151.0,0.00016323,2]
[382640816,1756691447778,-480.0,0.00016323,2]
[382640818,1756691447788,-480.0,0.00016323,2]
[382640820,1756691447798,-480.0,0.00016323,2]
[382640822,1756691447808,-480.0,0.00016323,2]
[382640824,1756691447817,-893.06,0.00016323,2]
[382640826,1756691447827,-269.0440339,0.00016323,2]
[382640828,1756691447836,-1018.89,0.00016323,2]
[382640830,1756691447845,-480.93984475,0.00016323,2]
[382640832,1756691447855,-151.0,0.00016323,2]
[382640834,1756691447865,-480.0,0.00016323,2]
[382640836,1756691447874,-480.0,0.00016323,2]
[382640838,1756691447884,-480.0,0.00016323,2]
[382640840,1756691447894,-480.0,0.00016323,2]
[382640842,1756691447903,-944.29,0.00016323,2]
[382640844,1756691447912,-151.0,0.00016323,2]
[382640846,1756691447921,-480.0,0.00016323,2]
[382640848,1756691447931,-151.467687,0.00016323,2]
[382640850,1756691447940,-480.0,0.00016323,2]
[382640852,1756691447950,-195.93906689,0.00016323,2]
[382640854,1756691447959,-543.02,0.00016323,2]
[382640856,1756691447969,-480.0,0.00016323,2]
[382640858,1756691447979,-652.58,0.00016323,2]
[382640860,1756691447989,-480.0,0.00016323,2]
[382640862,1756691447999,-499.74,0.00016323,2]
[382640864,1756691448008,-151.0,0.00016323,2]
[382640866,1756691448017,-480.0,0.00016323,2]
[382640868,1756691448026,-901.4,0.00016323,2]
[382640870,1756691448036,-480.0,0.00016323,2]
[382640872,1756691448046,-480.0,0.00016323,2]
[382640874,1756691448055,-486.02,0.00016323,2]
[382640876,1756691448064,-480.0,0.00016323,2]
[382640878,1756691448075,-590.08286174,0.00016323,2]
[382640880,1756691448085,-480.0,0.00016323,2]
[382640882,1756691448096,-480.0,0.00016323,2]
[382640884,1756691448106,-489.56,0.00016323,2]
[382640886,1756691448116,-480.0,0.00016323,2]
[382640888,1756691448125,-480.0,0.00016323,2]
[382640890,1756691448135,-575.72,0.00016323,2]
[382640892,1756691448145,-1182.93,0.00016323,2]
[382640894,1756691448154,-695.05,0.00016323,2]
[382640896,1756691448163,-304.76388619,0.00016327,2]
[382640898,1756691448174,-480.0,0.00016327,2]
[382640900,1756691448184,-686.54,0.00016327,2]
[382640902,1756691448193,-518.74,0.00016327,2]
[382640904,1756691448203,-162.36346473,0.00016327,2]
[382640906,1756691448212,-506.12,0.00016327,2]
[382640908,1756691448221,-480.0,0.00016328,2]
[382640910,1756691448232,-480.0,0.00016328,2]
[382640912,1756691448241,-527.03,0.00016328,2]
[382640919,1756691448296,-430.99469565,0.00016359,2]
[382640921,1756691448306,-272.0,0.0001636,2]
[382640924,1756691448318,-300.0,0.00016372,2]
[382640926,1756691448328,-300.0,0.00016372,2]
[382640928,1756691448338,-300.0,0.00016372,2]
[382640930,1756691448348,-300.0,0.00016372,2]
[382640932,1756691448358,-300.0,0.00016372,2]
[382640934,1756691448370,-300.0,0.00016372,2]
[382640936,1756691448385,-300.0,0.00016372,2]
[382640937,1756691448395,-300.0,0.00016372,2]
[382640939,1756691448405,-300.0,0.00016372,2]
[382640941,1756691448415,-300.0,0.00016372,2]
[382640944,1756691448428,-300.0,0.00016372,2]
[382640946,1756691448438,-300.0,0.00016372,2]
[382640948,1756691448448,-300.0,0.00016372,2]
[382640950,1756691448458,-300.0,0.00016372,2]
[382640952,1756691448469,-300.0,0.00016372,2]
[382640954,1756691448478,-500.0,0.00016373,2]
[382640956,1756691448488,-500.0,0.00016373,2]
[382640958,1756691448497,-500.0,0.00016373,2]
[382640960,1756691448509,-500.0,0.00016373,2]
[382640962,1756691448519,-500.0,0.00016373,2]
[382640964,1756691448529,-500.0,0.00016373,2]
[382640966,1756691448539,-500.0,0.00016373,2]
[382640968,1756691448549,-500.0,0.00016373,2]
[382640970,1756691448559,-500.0,0.00016373,2]
[382640972,1756691448569,-500.0,0.00016373,2]
[382640974,1756691448578,-162.32848625,0.00016373,2]
[382640976,1756691448588,-500.0,0.00016373,2]
[382640978,1756691448597,-600.0,0.00016374,2]
[382640980,1756691448607,-272.0,0.00016383,2]
[382640982,1756691448619,-151.0,0.000164,2]
[382640984,1756691448628,-160.0,0.0001641,2]
[382640986,1756691448637,-417.15472785,0.0001641,2]
[382640988,1756691448647,-160.0,0.0001641,2]
[382640990,1756691448656,-425.75173308,0.0001641,2]
[382640992,1756691448665,-160.0,0.0001641,2]
[382640994,1756691448675,-217.4012883,0.0001641,2]
[382640996,1756691448684,-845.95363151,0.0001641,2]
[382640998,1756691448693,-160.0,0.0001641,2]
[382641000,1756691448702,-160.0,0.0001641,2]
[382641002,1756691448711,-530.02580203,0.0001641,2]
[382641004,1756691448721,-160.0,0.0001641,2]
[382641006,1756691448731,-232.78794292,0.0001641,2]
[382641007,1756691448741,-160.0,0.0001641,2]
[382641010,1756691448751,-11364.23969824,0.00016411,2]
[382641011,1756691448761,-500.0,0.00016438,2]
[382641014,1756691448770,-500.0,0.00016438,2]
[382641015,1756691448779,-153.355312,0.00016438,2]
[382641017,1756691448789,-151.0,0.00016438,2]
[382641019,1756691448799,-151.0,0.00016438,2]
[382641021,1756691448808,-152.105409,0.00016438,2]
[382641023,1756691448818,-151.0,0.00016438,2]
[382641025,1756691448827,-270.515282,0.00016438,2]
[382641027,1756691448836,-154.456682,0.00016438,2]
[382641029,1756691448845,-154.599224,0.00016438,2]
[382641031,1756691448854,-195.389863,0.00016438,2]
[382641033,1756691448864,-155.218102,0.00016438,2]
[382641035,1756691448874,-151.0,0.00016438,2]
[382641037,1756691448883,-151.0,0.00016438,2]
[382641039,1756691448892,-151.0,0.00016438,2]
[382641041,1756691448902,-151.0,0.00016438,2]
[382641043,1756691448911,-152.408302,0.00016438,2]
[382641045,1756691448920,-151.0,0.00016438,2]
[382641047,1756691448929,-151.0,0.00016438,2]
[382641049,1756691448938,-151.0,0.00016438,2]
[382641051,1756691448947,-151.0,0.00016438,2]
[382641053,1756691448958,-151.0,0.00016438,2]
[382641055,1756691448969,-151.0,0.00016438,2]
[382641057,1756691448979,-186.485189,0.00016438,2]
[382641059,1756691448989,-430.99469565,0.00016497,2]
[382641061,1756691448998,-151.0,0.000165,2]
[382641063,1756691449008,-151.0,0.000165,2]
[382641065,1756691449019,-825.5250287,0.000165,2]
[382641067,1756691449028,-480.0,0.00016585,2]
[382641069,1756691449037,-480.0,0.00016585,2]
[382641071,1756691449046,-999.42,0.00016585,2]
[382641073,1756691449055,-1279.45,0.00016585,2]
[382641075,1756691449065,-484.49,0.00016585,2]
[382641077,1756691449074,-480.0,0.00016585,2]
[382641079,1756691449084,-735.32,0.00016586,2]
[382641081,1756691449093,-480.0,0.00016586,2]
[382641083,1756691449102,-480.0,0.00016586,2]
[382641085,1756691449113,-480.0,0.00016586,2]
[382641087,1756691449123,-480.0,0.00016586,2]
[382641089,1756691449132,-480.0,0.00016586,2]
[382641091,1756691449142,-518.12,0.00016586,2]
[382641093,1756691449152,-480.0,0.00016586,2]
[382641095,1756691449162,-482.48106718,0.00016586,2]
[382641098,1756691449172,-480.0,0.00016586,2]
[382641100,1756691449182,-480.0,0.00016586,2]
[382641101,1756691449191,-480.0,0.00016586,2]
[382641104,1756691449202,-507.74,0.00016586,2]
[382641106,1756691449211,-584.89,0.00016586,2]
[382641108,1756691449221,-480.0,0.00016586,2]
[382641110,1756691449231,-635.61,0.00016586,2]
[382641112,1756691449240,-480.0,0.00016586,2]
[382641114,1756691449250,-480.0,0.00016586,2]
[382641115,1756691449259,-480.0,0.00016586,2]
[382641117,1756691449268,-480.0,0.00016586,2]
[382641119,1756691449278,-1121.14,0.00016587,2]
[382641121,1756691449287,-745.01,0.00016587,2]
[382641123,1756691449296,-480.0,0.00016587,2]
[382641125,1756691449305,-533.36,0.00016587,2]
[382641127,1756691449315,-480.0,0.00016587,2]
[382641129,1756691449324,-2411.28,0.00016587,2]
[382641131,1756691449334,-621.93,0.00016587,2]
[382641133,1756691449343,-488.71,0.00016587,2]
[382641135,1756691449352,-480.0,0.00016587,2]
[382641138,1756691449364,-523.99,0.00016587,2]
[382641140,1756691449374,-1400.05,0.00016587,2]
[382641142,1756691449385,-480.0,0.00016587,2]
[382641144,1756691449395,-480.0,0.00016587,2]
[382641146,1756691449407,-480.0,0.00016587,2]
[382641148,1756691449416,-742.29,0.00016587,2]
[382641149,1756691449426,-2165.64,0.00016587,2]
[382641151,1756691449436,-480.0,0.00016587,2]
[382641153,1756691449446,-480.0,0.00016587,2]
[382641155,1756691449455,-759.97,0.00016587,2]
[382641157,1756691449466,-480.0,0.00016587,2]
[382641159,1756691449476,-571.98,0.00016587,2]
[382641161,1756691449485,-1841.26,0.00016587,2]
[382641163,1756691449495,-480.0,0.00016587,2]
[382641165,1756691449504,-194.02137911,0.00016589,2]
[382641167,1756691449514,-490.5,0.00016589,2]
[382641169,1756691449523,-480.0,0.00016589,2]
[382641171,1756691449534,-1269.26,0.00016589,2]
[382641173,1756691449543,-480.0,0.00016589,2]
[382641175,1756691449554,-1005.3,0.00016589,2]
[382641177,1756691449563,-1009.43,0.00016589,2]
[382641179,1756691449572,-703.41,0.00016589,2]
[382641181,1756691449581,-480.0,0.00016589,2]
[382641183,1756691449591,-480.0,0.00016589,2]
[382641185,1756691449601,-480.0,0.00016589,2]
[382641188,1756691449610,-480.0,0.00016589,2]
[382641190,1756691449620,-480.0,0.00016589,2]
[382641191,1756691449629,-538.55,0.00016589,2]
[382641194,1756691449639,-880.73,0.00016589,2]
[382641196,1756691449649,-686.11,0.00016589,2]
[382641197,1756691449658,-663.16,0.00016589,2]
[382641199,1756691449667,-480.0,0.00016589,2]
[382641202,1756691449677,-480.0,0.00016589,2]
[382641204,1756691449686,-854.49,0.00016589,2]
[382641205,1756691449695,-533.02,0.00016589,2]
[382641207,1756691449704,-841.48,0.00016589,2]
[382641210,1756691449714,-1172.62,0.00016589,2]
[382641211,1756691449723,-480.0,0.00016589,2]
[382641213,1756691449733,-480.0,0.00016589,2]
[382641215,1756691449744,-480.0,0.00016589,2]
[382641217,1756691449753,-703.02,0.00016589,2]
[382641219,1756691449763,-599.49,0.00016589,2]
[382641221,1756691449773,-863.35,0.00016589,2]
[382641223,1756691449782,-480.0,0.00016589,2]
[382641226,1756691449793,-480.0,0.00016589,2]
[382641227,1756691449803,-480.0,0.00016589,2]
[382641229,1756691449812,-787.39,0.00016589,2]
[382641231,1756691449821,-1017.55,0.00016589,2]
[382641233,1756691449830,-213.91847732,0.00016589,2]
[382641235,1756691449840,-776.17,0.00016589,2]
[382641237,1756691449849,-851.31,0.00016589,2]
[382641239,1756691449858,-480.0,0.00016589,2]
[382641241,1756691449868,-480.0,0.00016589,2]
[382641243,1756691449877,-769.18,0.00016589,2]
[382641245,1756691449887,-939.49,0.00016589,2]
[382641247,1756691449897,-480.0,0.00016589,2]
[382641249,1756691449906,-480.0,0.00016589,2]
[382641251,1756691449915,-480.0,0.00016589,2]
[382641253,1756691449925,-485.74,0.00016589,2]
[382641255,1756691449935,-286.71208656,0.00016589,2]
[382641257,1756691449944,-480.0,0.00016589,2]
[382641259,1756691449953,-959.34,0.00016589,2]
[382641262,1756691449963,-1153.72,0.00016589,2]
[382641264,1756691449972,-3816.45,0.0001659,2]
[382641266,1756691449981,-1746.81,0.0001659,2]
[382641268,1756691449991,-480.0,0.0001659,2]
[382641270,1756691450000,-910.89,0.0001659,2]
[382641272,1756691450009,-5528.96,0.0001659,2]
[382641274,1756691450019,-2200.31,0.0001659,2]
[382641276,1756691450029,-480.0,0.0001659,2]
[382641278,1756691450038,-480.0,0.00016591,2]
[382641280,1756691450048,-652.75,0.00016591,2]
[382641282,1756691450057,-2563.07138724,0.00016591,2]
[382641309,1756691450302,-1720.71130094,0.00016591,2]
[382641311,1756691450315,-300.0,0.00016591,2]
[382641440,1756691451711,-1198.35,0.00016039,2]
[382641444,1756691451736,-480.0,0.00016041,2]
[382641447,1756691451760,-480.0,0.00016041,2]
[382641450,1756691451781,-588.04,0.00016044,2]
[382641454,1756691451803,-480.0,0.00016045,2]
[382641457,1756691451825,-480.0,0.00016049,2]
[382641460,1756691451847,-1198.35,0.00016313,2]
[382641464,1756691451871,-480.0,0.00016315,2]
[382641467,1756691451894,-480.0,0.00016315,2]
[382641470,1756691451918,-1198.35,0.00016587,2]
[382641491,1756691452111,-480.0,0.00016589,2]
[382641495,1756691452134,-480.0,0.00016589,2]
[382641498,1756691452158,-1582.26731182,0.00016591,2]
[382641502,1756691452180,-1356.21,0.00016591,2]
[382641505,1756691452203,-5985.03,0.00016591,2]
[382641508,1756691452226,-151.0,0.00016591,2]
[382641512,1756691452247,-600.03,0.00016591,2]
[382641515,1756691452270,-151.0,0.00016591,2]
[382641518,1756691452292,-151.0,0.00016591,2]
[382641522,1756691452314,-1366.82,0.00016591,2]
[382641525,1756691452336,-549.13,0.00016592,2]
[382641528,1756691452357,-480.0,0.00016592,2]
[382641531,1756691452381,-635.01,0.00016592,2]
[382641535,1756691452406,-493.74,0.00016592,2]
[382641538,1756691452428,-1315.58,0.00016592,2]
[382641541,1756691452449,-480.0,0.00016592,2]
[382641545,1756691452474,-480.0,0.00016592,2]
[382641548,1756691452496,-480.0,0.00016592,2]
[382641551,1756691452519,-1061.69,0.00016592,2]
[382641554,1756691452539,-480.0,0.00016592,2]
[382641558,1756691452564,-1166.29,0.00016592,2]
[382641561,1756691452587,-480.0,0.00016592,2]
[382641564,1756691452607,-480.0,0.00016592,2]
[382641567,1756691452630,-1450.56,0.00016592,2]
[382641571,1756691452654,-2280.44,0.00016592,2]
[382641574,1756691452676,-873.48,0.00016592,2]
[382641578,1756691452697,-480.0,0.00016592,2]
[382641581,1756691452719,-721.48,0.00016592,2]
[382641584,1756691452741,-1114.48,0.00016592,2]
[382641585,1756691452762,-1309.19,0.00016592,2]
[382641586,1756691452783,-652.81,0.00016592,2]
[382641587,1756691452804,-480.0,0.00016592,2]
[382641588,1756691452824,-151.0,0.00016592,2]
[382641589,1756691452845,-153.490097,0.00016592,2]
[382641590,1756691452867,-480.0,0.00016593,2]
[382641591,1756691452888,-790.99,0.00016593,2]
[382641592,1756691452908,-480.0,0.00016593,2]
[382641593,1756691452929,-480.0,0.00016593,2]
[382641594,1756691452950,-480.0,0.00016593,2]
[382641595,1756691452971,-480.0,0.00016593,2]
[382641596,1756691452992,-480.0,0.00016593,2]
[382641597,1756691453015,-480.0,0.00016593,2]
[382641598,1756691453037,-285.19595273,0.00016593,2]
[382641599,1756691453059,-480.0,0.00016593,2]
[382641600,1756691453079,-971.05,0.00016593,2]
[382641601,1756691453100,-480.0,0.00016593,2]
[382641602,1756691453122,-482.11432006,0.00016593,2]
[382641605,1756691453143,-480.0,0.00016593,2]
[382641609,1756691453166,-863.68,0.00016593,2]
[382641612,1756691453188,-480.0,0.00016593,2]
[382641615,1756691453211,-323.32402794,0.00016593,2]
[382641619,1756691453234,-480.0,0.00016593,2]
[382641622,1756691453257,-480.0,0.00016593,2]
[382641625,1756691453279,-480.0,0.00016593,2]
[382641629,1756691453302,-1194.5,0.00016593,2]
[382641632,1756691453325,-480.0,0.00016593,2]
[382641636,1756691453348,-274.32829045,0.00016593,2]
[382642395,1756691470063,-480.0,0.00016037,2]
[382642396,1756691470087,-651.89,0.00016037,2]
[382642397,1756691470111,-480.0,0.00016037,2]
[382642398,1756691470137,-480.0,0.00016038,2]
[382642399,1756691470159,-480.0,0.00016039,2]
[382642400,1756691470182,-789.11,0.00016039,2]
[382642401,1756691470205,-480.0,0.00016039,2]
[382642402,1756691470228,-1026.04,0.00016039,2]
[382642403,1756691470251,-811.55,0.00016039,2]
[382642404,1756691470273,-480.0,0.00016041,2]
[382642405,1756691470295,-1528.46,0.00016041,2]
[382642406,1756691470318,-555.64,0.00016041,2]
[382642407,1756691470342,-210.59940042,0.00016041,2]
[382642408,1756691470365,-5395.29,0.00016041,2]
[382642409,1756691470392,-480.0,0.00016041,2]
[382642410,1756691470418,-300.0,0.00016044,2]
[382642411,1756691470440,-480.0,0.00016045,2]
[382642412,1756691470463,-480.0,0.00016045,2]